bitfinex-derivatives/quotes_SOLF0:USTF0_20250501
["timestamp","ask_amount","ask_price","bid_price","bid_amount"]
[1746066826682,28.27999814,149.39,149.34,2.1035]
[1746066827573,23.76,149.39,149.34,2.1035]
[1746066828380,23.76,149.39,149.36,6.6945]
[1746066829180,23.76,149.39,149.34,2.1035]
[1746066829375,7.06043022,149.42,149.34,4.1166]
[1746066829376,30.82043022,149.42,149.34,4.1166]
[1746066829780,6.6933,149.4,149.36,6.6947]
[1746066829980,6.6933,149.4,149.34,4.1166]
[1746066831781,6.6933,149.4,149.37,6.6944]
[1746066832675,6.6936,149.39,149.36,6.6947]
[1746066838077,30.82043022,149.42,149.34,2.1035]
[1746066839182,6.6942,149.38,149.34,8.7989]
[1746066839876,6.6942,149.38,149.35,6.6952]
[1746066841883,6.6937,149.39,149.36,6.6948]
[1746066842485,6.6931,149.4,149.37,6.6943]
[1746066844488,6.6936,149.39,149.36,6.6947]
[1746066844981,30.82043022,149.42,149.34,2.1035]
[1746066845181,6.6933,149.4,149.37,6.6943]
[1746066846785,6.6935,149.39,149.37,6.6943]
[1746066847385,6.6933,149.4,149.37,6.6943]
[1746066847586,30.82043022,149.42,149.37,6.6943]
[1746066847985,6.6933,149.4,149.37,6.6943]
[1746066848886,6.6936,149.39,149.37,6.6943]
[1746066849486,6.6933,149.4,149.37,6.6943]
[1746066850181,6.6935,149.39,149.37,6.6943]
[1746066850781,30.82043022,149.42,149.37,6.6943]
[1746066850782,6.6934,149.4,149.37,6.6943]
[1746066851489,4.51903393,149.38,149.37,6.6943]
[1746066853386,4.51903393,149.38,149.36,6.6946]
[1746066853586,4.51903393,149.38,149.34,2.1035]
[1746066853888,11.21303393,149.38,149.34,2.1035]
[1746066854990,4.51903393,149.38,149.36,6.6946]
[1746066856585,28.25903393,149.38,149.3,23.74]
[1746066856787,4.51903393,149.35,149.3,23.74]
[1746066856989,4.51903393,149.35,149.33,6.6959]
[1746066858191,4.51903393,149.35,149.34,6.6957]
[1746066858387,4.51903393,149.37,149.3,28.25903393]
[1746066859494,4.51903393,149.37,149.35,6.6951]
[1746066861198,11.21343393,149.37,149.34,6.6955]
[1746066863000,4.51903393,149.37,149.35,6.6951]
[1746066863600,4.51903393,149.37,149.36,6.6948]
[1746066866903,4.51903393,149.37,149.35,6.6951]
[1746066872002,11.21343393,149.37,149.3,28.25903393]
[1746066872203,4.51903393,149.35,149.3,23.74]
[1746066872901,4.51903393,149.35,149.34,6.6957]
[1746066874109,4.51903393,149.35,149.33,6.696]
[1746066875299,4.51903393,149.35,149.3,23.74]
[1746066875505,4.51903393,149.35,149.34,6.6957]
[1746066876206,4.51903393,149.35,149.33,6.696]
[1746066876407,4.51903393,149.35,149.3,23.74]
[1746066877608,4.51903393,149.35,149.33,6.6958]
[1746066879408,4.51903393,149.35,149.34,6.6957]
[1746066881009,4.51903393,149.35,149.33,6.6961]
[1746066882409,4.51903393,149.35,149.29,1.987]
[1746066882610,4.51903393,149.33,149.29,1.987]
[1746066882808,23.74,149.38,149.29,1.987]
[1746066883002,23.74,149.38,149.29,6.50603393]
[1746066883305,4.51903393,149.35,149.29,6.50603393]
[1746066883506,4.51903393,149.35,149.3,23.74]
[1746066884216,4.51903393,149.35,149.34,6.6957]
[1746066886221,4.51903393,149.35,149.33,6.6961]
[1746066887014,4.51903393,149.35,149.34,6.6957]
[1746066888214,4.51903393,149.35,149.33,6.6961]
[1746066890616,4.51903393,149.35,149.34,6.6957]
[1746066891017,30.4341,149.38,149.35,6.6952]
[1746066891223,4.51903393,149.37,149.35,6.6952]
[1746066892324,11.21343393,149.37,149.35,6.6952]
[1746066892522,4.51903393,149.37,149.35,6.6952]
[1746066894123,4.51903393,149.37,149.36,6.6948]
[1746066895224,4.51903393,149.37,149.35,6.6951]
[1746066900330,11.21353393,149.37,149.35,6.6951]
[1746066900629,11.21353393,149.37,149.34,6.6956]
[1746066903431,23.74,149.38,149.31,2.0503]
[1746066903640,4.51903393,149.39,149.32,6.55553393]
[1746066903934,11.21253393,149.39,149.36,6.6948]
[1746066904332,4.51903393,149.37,149.36,6.6948]
[1746066906137,28.23903393,149.4,149.38,6.6939]
[1746066906327,4.51903393,149.4,149.38,6.6939]
[1746066907036,4.51903393,149.41,149.35,2.013]
[1746066907533,4.51903393,149.41,149.4,6.6929]
[1746066909134,4.51903393,149.41,149.39,6.6933]
[1746066909835,4.51903393,149.41,149.4,6.6931]
[1746066910036,4.51903393,149.41,149.36,1.9636]
[1746066910936,4.51903393,149.41,149.38,6.6937]
[1746066914241,11.21163393,149.41,149.38,6.6937]
[1746066914934,4.51903393,149.41,149.39,6.6934]
[1746066916743,4.51903393,149.41,149.38,6.6939]
[1746066917542,4.51903393,149.41,149.39,6.6934]
[1746066918442,4.51903393,149.41,149.38,6.6938]
[1746066919237,4.51903393,149.41,149.39,6.6935]
[1746066919547,4.51903393,149.41,149.36,1.9636]
[1746066920546,4.51903393,149.41,149.4,6.6931]
[1746066922945,4.51903393,149.41,149.39,6.6933]
[1746066927750,4.51903393,149.41,149.4,6.6931]
[1746066927945,4.51903393,149.45,149.38,4.51903393]
[1746066928151,4.51903393,149.45,149.38,28.21903393]
[1746066928349,4.51903393,149.45,149.4,6.6928]
[1746066928550,4.51903393,149.45,149.38,28.21903393]
[1746066928946,6.6914,149.44,149.4,6.693]
[1746066929153,6.6914,149.44,149.38,28.21903393]
[1746066929452,6.6914,149.44,149.38,38.29903393]
[1746066930054,6.6914,149.44,149.41,6.6924]
[1746066930455,11.21003393,149.45,149.38,38.29903393]
[1746066930848,11.21003393,149.45,149.41,6.6922]
[1746066931455,4.51903393,149.45,149.43,6.6914]
[1746066931652,4.51903393,149.45,149.4,4.51903393]
[1746066932656,4.51903393,149.45,149.44,6.6913]
[1746066933156,4.51903393,149.45,149.43,6.6915]
[1746066933758,4.51903393,149.45,149.38,33.78]
[1746066933955,4.51903393,149.42,149.38,33.78]
[1746066934956,4.51903393,149.42,149.4,6.6927]
[1746066936061,4.51903393,149.43,149.38,33.78]
[1746066936253,11.21003393,149.45,149.39,4.51903393]
[1746066936558,11.21003393,149.45,149.41,6.6922]
[1746066937358,11.21003393,149.45,149.42,6.692]
[1746066940562,4.51903393,149.45,149.39,4.51903393]
[1746066940863,23.7,149.46,149.43,6.6914]
[1746066942462,23.7,149.46,149.44,6.6911]
[1746066944564,23.7,149.46,149.43,6.6915]
[1746066945265,23.7,149.46,149.44,6.6912]
[1746066945464,11.20903393,149.47,149.44,6.6912]
[1746066949666,6.6904,149.46,149.43,6.6914]
[1746066949864,4.51903393,149.47,149.4,1.9324]
[1746066951369,4.51903393,149.47,149.41,13.56]
[1746066951971,4.51903393,149.47,149.44,6.691]
[1746066952371,11.20903393,149.47,149.44,6.691]
[1746066955673,11.20903393,149.47,149.43,6.6915]
[1746066956577,11.20903393,149.47,149.44,6.6912]
[1746066961176,4.51903393,149.47,149.41,13.56]
[1746066961387,4.51903393,149.45,149.41,13.56]
[1746066961890,11.21003393,149.45,149.42,6.6919]
[1746066965789,4.51903393,149.46,149.41,13.56]
[1746066966691,4.51903393,149.46,149.41,14.71]
[1746066967193,11.20943393,149.46,149.43,6.6913]
[1746066968591,11.20943393,149.46,149.42,6.6921]
[1746066968786,11.20943393,149.46,149.41,14.71]
[1746066969195,4.51903393,149.46,149.43,6.6915]
[1746066969399,4.51903393,149.46,149.41,14.71]
[1746066969694,4.51903393,149.46,149.42,23.66]
[1746066971094,4.51903393,149.46,149.43,6.6914]
[1746066971394,11.20943393,149.46,149.43,6.6914]
[1746066971594,4.51903393,149.46,149.43,6.6914]
[1746066975498,4.51903393,149.46,149.44,6.6912]
[1746066976902,11.20943393,149.46,149.43,6.6915]
[1746066977200,4.51903393,149.46,149.43,6.6915]
[1746066978201,11.20943393,149.46,149.43,6.6915]
[1746066980001,4.51903393,149.46,149.44,6.6911]
[1746066981201,4.51903393,149.47,149.45,6.6908]
[1746066981401,4.51903393,149.47,149.42,23.66]
[1746066981605,4.51903393,149.47,149.45,6.6908]
[1746066989501,23.66,149.49,149.47,6.6899]
[1746066989807,4.51903393,149.51,149.44,1.15]
[1746066990000,11.20743393,149.51,149.44,1.15]
[1746066990200,11.20743393,149.51,149.47,6.6897]
[1746066990604,11.20743393,149.51,149.48,6.6893]
[1746066990904,11.20743393,149.51,149.44,1.15]
[1746066991103,6.6887,149.5,149.44,1.15]
[1746066991304,4.51903393,149.49,149.44,1.15]
[1746066991509,4.51903393,149.49,149.44,10.88]
[1746066992005,11.20833393,149.49,149.46,6.6901]
[1746066992303,4.51903393,149.49,149.44,10.88]
[1746066992705,11.20813393,149.49,149.46,6.6902]
[1746066993802,4.51903393,149.49,149.47,6.6899]
[1746066996007,4.51903393,149.49,149.44,10.88]
[1746066996508,4.51903393,149.47,149.45,6.6905]
[1746066996806,4.51903393,149.47,149.44,9.73]
[1746066997310,4.51903393,149.47,149.42,23.66]
[1746066997608,11.20893393,149.47,149.44,6.6909]
[1746066999003,6.6905,149.46,149.42,23.66]
[1746066999309,4.51903393,149.45,149.41,23.64]
[1746067000005,11.21013393,149.45,149.41,30.3324]
[1746067000310,4.51903393,149.45,149.41,30.3324]
[1746067000807,11.21003393,149.45,149.41,30.3324]
[1746067001311,4.51903393,149.45,149.42,6.6921]
[1746067001504,4.51903393,149.45,149.41,23.64]
[1746067002210,4.51903393,149.45,149.43,6.6915]
[1746067003712,4.51903393,149.45,149.44,6.6913]
[1746067004014,4.51903393,149.46,149.41,23.64]
[1746067004211,4.51903393,149.46,149.44,6.691]
[1746067005314,4.51903393,149.46,149.45,6.6908]
[1746067005508,4.51903393,149.48,149.42,4.51903393]
[1746067005705,4.51903393,149.48,149.42,6.47473393]
[1746067005914,4.51903393,149.48,149.45,6.6906]
[1746067006416,6.6892,149.49,149.46,6.6902]
[1746067006712,4.51903393,149.48,149.46,6.6902]
[1746067007914,11.20853393,149.48,149.46,6.6902]
[1746067008408,4.51903393,149.48,149.41,23.64]
[1746067008609,4.51903393,149.46,149.41,23.64]
[1746067009215,4.51903393,149.46,149.44,6.691]
[1746067012412,4.51903393,149.46,149.41,23.64]
[1746067012618,4.51903393,149.46,149.45,6.6908]
[1746067013820,4.51903393,149.46,149.44,6.6911]
[1746067014323,4.51903393,149.46,149.45,6.6908]
[1746067015223,4.51903393,149.46,149.44,6.691]
[1746067015415,4.51903393,149.46,149.41,23.64]
[1746067015917,23.64,149.5,149.44,6.691]
[1746067016121,4.51903393,149.47,149.41,23.64]
[1746067016722,4.51903393,149.47,149.44,6.691]
[1746067017717,4.51903393,149.47,149.45,6.6907]
[1746067020724,4.51903393,149.47,149.46,6.6904]
[1746067020922,4.51903393,149.49,149.43,4.51903393]
[1746067021124,23.64,149.5,149.43,4.51903393]
[1746067021317,11.20743393,149.51,149.43,4.51903393]
[1746067022223,11.20743393,149.51,149.48,6.6894]
[1746067023826,4.51903393,149.51,149.45,23.62]
[1746067024427,11.20743393,149.51,149.48,6.6894]
[1746067024622,4.51903393,149.49,149.48,6.6894]
[1746067029226,4.51903393,149.49,149.47,6.6897]
[1746067030433,6.6883,149.51,149.48,6.6895]
[1746067030631,4.51903393,149.5,149.48,6.6895]
[1746067032632,6.6883,149.51,149.48,6.6895]
[1746067032828,4.51903393,149.5,149.48,6.6895]
[1746067036433,4.51903393,149.52,149.45,28.13903393]
[1746067036735,4.51903393,149.52,149.46,2.0711]
[1746067038240,4.51903393,149.52,149.5,6.6886]
[1746067038435,11.20683393,149.52,149.46,2.0711]
[1746067038738,11.20683393,149.52,149.49,6.6889]
[1746067039835,11.20683393,149.52,149.48,6.6892]
[1746067040750,11.20683393,149.52,149.49,6.689]
[1746067045547,4.51903393,149.52,149.46,2.0711]
[1746067045755,23.6,149.58,149.49,4.51903393]
[1746067046051,4.51903393,149.57,149.49,28.11903393]
[1746067046250,4.51903393,149.57,149.54,6.6868]
[1746067046450,23.6,149.58,149.54,6.6868]
[1746067046647,4.51903393,149.57,149.54,6.6868]
[1746067047541,6.685,149.58,149.54,6.6868]
[1746067047747,8.77,149.59,149.55,6.6863]
[1746067048241,13.72811852,149.6,149.56,6.6856]
[1746067049153,6.6842,149.6,149.56,6.6856]
[1746067049452,37.32771852,149.61,149.57,6.6851]
[1746067050151,30.64391852,149.61,149.53,23.6]
[1746067050551,7.04391852,149.58,149.53,23.6]
[1746067051149,7.04391852,149.58,149.56,6.6857]
[1746067051854,7.04391852,149.58,149.55,6.6862]
[1746067052254,23.6,149.61,149.53,28.43]
[1746067052553,37.32771852,149.61,149.53,28.43]
[1746067052744,30.64391852,149.61,149.53,28.43]
[1746067053056,6.685,149.59,149.55,6.686]
[1746067053762,6.6855,149.57,149.53,35.1169]
[1746067053960,7.04391852,149.58,149.53,28.43]
[1746067054955,23.6,149.61,149.53,28.43]
[1746067055256,6.6848,149.59,149.55,6.686]
[1746067055456,6.6848,149.59,149.53,28.43]
[1746067055955,6.6843,149.6,149.53,28.43]
[1746067056355,6.6843,149.6,149.56,6.6858]
[1746067057261,6.6848,149.59,149.55,6.6861]
[1746067057456,6.6848,149.59,149.53,28.43]
[1746067058361,6.6848,149.59,149.55,6.6859]
[1746067059758,6.6848,149.59,149.56,6.6858]
[1746067061263,6.6843,149.6,149.57,6.6854]
[1746067061658,6.6843,149.6,149.53,28.43]
[1746067061858,6.6843,149.6,149.56,6.6857]
[1746067062164,25.5341,149.64,149.53,28.43]
[1746067062362,32.57801852,149.64,149.53,28.43]
[1746067062962,6.6839,149.61,149.58,6.6847]
[1746067063161,32.57801852,149.64,149.53,28.43]
[1746067063466,32.57801852,149.64,149.59,6.6842]
[1746067063467,6.683,149.63,149.59,6.6842]
[1746067063762,7.04391852,149.67,149.57,23.6]
[1746067063961,6.6819,149.65,149.58,23.6]
[1746067064556,6.6819,149.65,149.6,6.6841]
[1746067064755,6.6819,149.65,149.58,23.6]
[1746067065067,6.6823,149.64,149.58,23.6]
[1746067065362,7.04391852,149.66,149.58,23.6]
[1746067065757,7.04391852,149.66,149.59,11.12]
[1746067066164,6.6826,149.64,149.59,11.12]
[1746067066459,7.04391852,149.66,149.59,11.12]
[1746067066664,6.6824,149.64,149.61,6.6836]
[1746067067165,7.04391852,149.66,149.61,6.6836]
[1746067067463,6.6821,149.65,149.61,6.6836]
[1746067070162,6.6821,149.65,149.62,6.6831]
[1746067070759,6.6824,149.64,149.59,11.12]
[1746067071268,6.6824,149.64,149.61,6.6836]
[1746067071463,6.682,149.65,149.59,11.12]
[1746067071667,11.05921852,149.67,149.59,11.12]
[1746067071968,6.6817,149.66,149.62,6.6829]
[1746067072871,6.6817,149.66,149.63,6.6827]
[1746067073368,13.72491852,149.67,149.63,6.6827]
[1746067073568,23.6,149.68,149.64,6.682]
[1746067073759,23.6,149.68,149.59,11.12]
[1746067074273,6.6811,149.67,149.63,6.6827]
[1746067074872,6.6816,149.66,149.63,6.6827]
[1746067075471,7.04391852,149.67,149.59,11.12]
[1746067076173,6.6826,149.64,149.6,6.6837]
[1746067076474,6.6826,149.64,149.59,11.12]
[1746067076772,6.683,149.63,149.6,6.684]
[1746067076974,9.02951852,149.67,149.6,6.684]
[1746067077575,6.6826,149.64,149.6,11.094]
[1746067077769,6.6826,149.64,149.61,6.6836]
[1746067077975,1.9856,149.67,149.61,6.6836]
[1746067079076,6.6822,149.65,149.61,6.6836]
[1746067079268,1.9856,149.67,149.61,6.6836]
[1746067079470,23.6,149.68,149.6,4.41]
[1746067079977,6.6816,149.66,149.62,6.683]
[1746067080273,23.6,149.68,149.6,4.41]
[1746067080467,6.6827,149.64,149.6,4.41]
[1746067080672,6.6827,149.64,149.6,11.0938]
[1746067080878,23.6,149.68,149.6,11.0938]
[1746067081577,6.6826,149.64,149.6,11.0938]
[1746067081872,6.6826,149.64,149.61,6.6836]
[1746067082778,6.6826,149.64,149.6,23.2839]
[1746067083376,23.96,149.64,149.6,16.6]
[1746067083874,6.6837,149.61,149.6,16.6]
[1746067084077,23.96,149.64,149.6,16.6]
[1746067084579,6.6829,149.63,149.6,16.6]
[1746067084974,23.96,149.64,149.6,16.6]
[1746067085276,6.6836,149.62,149.6,16.6]
[1746067085476,23.96,149.64,149.6,16.6]
[1746067085982,6.6836,149.62,149.6,16.6]
[1746067086675,6.6837,149.61,149.6,16.6]
[1746067088181,6.683,149.63,149.6,23.2841]
[1746067088481,6.683,149.63,149.6,16.6]
[1746067088882,23.96,149.64,149.6,16.6]
[1746067088883,6.6832,149.62,149.6,16.6]
[1746067089181,23.96,149.64,149.6,12.19]
[1746067089683,6.6837,149.61,149.6,12.19]
[1746067090980,6.6834,149.62,149.6,12.19]
[1746067091280,23.96,149.64,149.6,12.19]
[1746067092184,6.6837,149.61,149.6,12.19]
[1746067093184,6.6834,149.62,149.6,12.19]
[1746067093685,6.6837,149.61,149.6,12.19]
[1746067094379,6.6834,149.62,149.6,12.19]
[1746067096184,6.6837,149.61,149.6,12.19]
[1746067099582,11.18833491,149.62,149.6,12.19]
[1746067099785,4.50493491,149.62,149.6,18.874]
[1746067099986,4.50493491,149.62,149.6,12.19]
[1746067100590,11.18823491,149.62,149.6,12.19]
[1746067101592,23.96,149.64,149.6,12.19]
[1746067102095,11.18813491,149.63,149.6,18.8739]
[1746067102286,4.50493491,149.63,149.6,18.8739]
[1746067102899,4.50493491,149.63,149.6,31.0239]
[1746067103193,11.18803491,149.63,149.6,31.0239]
[1746067103394,4.50493491,149.63,149.6,35.41]
[1746067104194,23.96,149.64,149.6,35.41]
[1746067104695,6.6828,149.63,149.61,6.6836]
[1746067105194,6.6828,149.63,149.6,35.41]
[1746067105396,6.6833,149.62,149.6,35.41]
[1746067105698,6.6833,149.62,149.6,23.22]
[1746067106201,6.6832,149.63,149.6,23.22]
[1746067106394,6.6832,149.63,149.6,29.904]
[1746067106597,23.96,149.64,149.6,23.22]
[1746067107200,6.6829,149.63,149.6,23.22]
[1746067108000,6.6829,149.63,149.6,29.904]
[1746067110102,6.6829,149.63,149.6,34.314]
[1746067112407,6.6832,149.62,149.6,34.314]
[1746067113009,6.683,149.63,149.6,34.314]
[1746067113308,28.46493491,149.64,149.6,27.63]
[1746067113810,6.6829,149.63,149.6,27.63]
[1746067114211,28.46493491,149.64,149.6,27.63]
[1746067114511,4.50493491,149.62,149.6,27.63]
[1746067116211,6.6837,149.61,149.6,27.63]
[1746067119416,6.6846,149.59,149.58,10.77]
[1746067119610,11.18953491,149.59,149.58,10.77]
[1746067119811,6.6857,149.57,149.52,24.2]
[1746067120109,11.19063491,149.57,149.52,24.2]
[1746067120311,24.2,149.6,149.52,24.2]
[1746067120511,4.50493491,149.57,149.52,24.2]
[1746067121613,11.19043491,149.57,149.54,6.6865]
[1746067126217,11.19043491,149.57,149.54,11.5165]
[1746067133121,6.686,149.56,149.54,11.5165]
[1746067133413,6.686,149.56,149.54,16.69]
[1746067133620,4.50493491,149.55,149.54,16.69]
[1746067134025,11.19123491,149.55,149.54,16.69]
[1746067139822,4.50493491,149.55,149.54,16.69]
[1746067140022,24.2,149.56,149.54,16.69]
[1746067140222,4.50493491,149.57,149.54,16.69]
[1746067140528,11.19043491,149.57,149.54,23.3765]
[1746067140722,4.50493491,149.58,149.54,23.3765]
[1746067141025,6.6857,149.57,149.54,23.3765]
[1746067142328,6.686,149.56,149.54,16.69]
[1746067142527,4.50493491,149.58,149.54,16.69]
[1746067142828,6.6852,149.58,149.55,6.6861]
[1746067143029,24.26,149.59,149.54,16.69]
[1746067143533,24.26,149.59,149.56,6.6856]
[1746067143727,24.26,149.59,149.54,16.69]
[1746067144227,30.9448,149.59,149.56,6.6859]
[1746067149933,6.685,149.58,149.55,6.6862]
[1746067150933,6.6855,149.57,149.54,11.5167]
[1746067151126,31.30272448,149.59,149.54,4.83]
[1746067152331,6.6863,149.55,149.54,4.83]
[1746067154342,6.6863,149.55,149.53,11.62]
[1746067155032,6.6868,149.54,149.53,11.62]
[1746067155231,6.6868,149.54,149.51,6.6879]
[1746067157840,6.6868,149.54,149.5,30.9484]
[1746067158344,6.6876,149.53,149.49,8.6502]
[1746067158538,6.6876,149.53,149.5,13.98]
[1746067159338,6.687,149.54,149.5,13.98]
[1746067159534,24.26,149.55,149.5,13.98]
[1746067160643,24.26,149.55,149.5,20.6683]
[1746067160850,24.26,149.55,149.5,13.98]
[1746067161154,6.6871,149.54,149.5,20.6684]
[1746067161951,6.6873,149.53,149.5,20.6684]
[1746067162442,24.26,149.55,149.5,13.98]
[1746067163050,6.6876,149.53,149.5,20.6683]
[1746067165253,6.6876,149.53,149.5,13.98]
[1746067166254,6.6876,149.53,149.5,20.6686]
[1746067167455,11.19801842,149.53,149.5,20.6686]
[1746067167972,4.51041842,149.53,149.5,13.98]
[1746067168462,6.688,149.52,149.5,13.98]
[1746067168965,6.6881,149.51,149.5,13.98]
[1746067170669,11.19851842,149.51,149.5,13.98]
[1746067171465,6.6889,149.5,149.48,4.83]
[1746067172872,11.19871842,149.51,149.48,4.83]
[1746067173173,11.19871842,149.51,149.48,11.5195]
[1746067173370,6.6886,149.5,149.48,4.83]
[1746067174971,4.51041842,149.51,149.48,4.83]
[1746067174972,6.689,149.49,149.48,4.83]
[1746067175373,11.19941842,149.49,149.48,4.83]
[1746067177473,6.689,149.49,149.48,4.83]
[1746067179877,7.05164275,149.49,149.39,28.2545]
[1746067180170,7.05164275,149.46,149.4,6.6929]
[1746067180379,6.6922,149.42,149.39,2.1004]
[1746067180569,31.27164275,149.46,149.39,2.1004]
[1746067181379,31.27164275,149.46,149.37,24.45]
[1746067181876,6.6929,149.41,149.37,31.1442]
[1746067182376,1.9976,149.45,149.37,31.1442]
[1746067182377,6.6931,149.4,149.37,31.1442]
[1746067182675,1.9976,149.45,149.37,31.1442]
[1746067183676,1.9976,149.45,149.38,6.6939]
[1746067184077,6.6925,149.42,149.38,6.6939]
[1746067184972,6.6927,149.41,149.37,31.1442]
[1746067185578,6.6923,149.42,149.37,31.1442]
[1746067185778,6.6923,149.42,149.38,6.6939]
[1746067185978,1.9976,149.45,149.37,24.45]
[1746067187181,6.6934,149.4,149.37,24.45]
[1746067187479,24.22,149.42,149.37,24.45]
[1746067189580,6.6933,149.4,149.37,24.45]
[1746067191876,24.22,149.42,149.37,24.45]
[1746067191877,6.6927,149.41,149.37,24.45]
[1746067192180,24.22,149.42,149.37,24.45]
[1746067192380,6.6927,149.41,149.38,6.6935]
[1746067195178,6.6931,149.4,149.38,6.6935]
[1746067195380,6.6931,149.4,149.37,44.0442]
[1746067195582,24.22,149.42,149.37,37.35]
[1746067195780,6.6938,149.39,149.37,37.35]
[1746067196581,24.22,149.42,149.37,37.35]
[1746067198182,6.6931,149.4,149.37,44.0442]
[1746067198982,6.6928,149.41,149.38,6.6939]
[1746067199177,24.22,149.42,149.37,37.35]
[1746067199483,6.6927,149.41,149.38,6.694]
[1746067200474,6.6931,149.4,149.37,44.0442]
[1746067201780,30.9123,149.42,149.39,6.6934]
[1746067203085,24.2,149.45,149.37,50.84]
[1746067203286,24.2,149.45,149.38,5.9561]
[1746067203480,6.6916,149.44,149.41,6.6922]
[1746067205089,30.8911,149.45,149.38,5.9561]
[1746067205486,24.2,149.45,149.38,5.9561]
[1746067205888,6.6913,149.44,149.41,6.6922]
[1746067206186,24.2,149.45,149.38,15.8261]
[1746067206487,24.2,149.49,149.39,7.05164275]
[1746067207088,6.6906,149.46,149.43,6.6915]
[1746067209193,6.6906,149.46,149.44,6.6912]
[1746067210190,24.2,149.49,149.41,24.2]
[1746067211091,6.6898,149.48,149.45,6.6907]
[1746067213992,6.6898,149.48,149.44,6.6911]
[1746067214496,6.6898,149.48,149.45,6.6908]
[1746067216692,31.25164275,149.49,149.41,24.2]
[1746067217694,6.6911,149.45,149.42,6.6919]
[1746067218391,31.25164275,149.49,149.38,30.1561]
[1746067218790,6.6917,149.44,149.4,6.6926]
[1746067219595,6.6918,149.43,149.4,6.6926]
[1746067219889,31.25164275,149.49,149.38,30.1561]
[1746067220084,24.2,149.49,149.38,30.1561]
[1746067220288,6.6901,149.47,149.38,30.1561]
[1746067220797,6.6901,149.47,149.44,6.6912]
[1746067223501,24.2,149.49,149.42,24.2]
[1746067223694,31.25164275,149.52,149.43,4.1228]
[1746067224196,6.689,149.5,149.44,10.424]
[1746067224497,6.689,149.5,149.46,6.69]
[1746067224700,6.689,149.5,149.44,10.424]
[1746067225099,6.6891,149.49,149.46,6.6901]
[1746067225600,6.6891,149.49,149.47,6.6899]
[1746067226201,31.25164275,149.52,149.44,10.424]
[1746067226504,7.05164275,149.49,149.44,8.46]
[1746067226800,24.04,149.48,149.44,8.46]
[1746067227194,6.69,149.47,149.44,21.69]
[1746067227395,24.04,149.48,149.44,21.69]
[1746067227802,15.76804275,149.51,149.46,6.6903]
[1746067228104,9.07964275,149.51,149.46,6.6903]
[1746067229398,6.6887,149.5,149.46,6.6903]
[1746067229808,2.028,149.51,149.44,21.69]
[1746067230101,7.05164275,149.48,149.44,37.41]
[1746067230302,32.37164275,149.48,149.44,37.41]
[1746067230501,6.69,149.47,149.44,37.41]
[1746067230701,32.37164275,149.48,149.44,37.41]
[1746067232204,6.6908,149.45,149.44,37.41]
[1746067232711,6.6903,149.47,149.44,37.41]
[1746067233309,32.37164275,149.48,149.44,37.41]
[1746067233605,6.6908,149.45,149.44,37.41]
[1746067234101,6.6908,149.45,149.44,27.3135]
[1746067234296,7.05164275,149.45,149.37,6.694]
[1746067234499,25.32,149.44,149.36,25.32]
[1746067235200,6.6934,149.4,149.36,25.32]
[1746067235403,7.05164275,149.42,149.36,25.32]
[1746067235707,6.6935,149.39,149.34,12.5375]
[1746067236406,6.6935,149.39,149.35,6.6952]
[1746067236609,6.6935,149.39,149.34,5.8421]
[1746067237210,6.694,149.38,149.34,12.5375]
[1746067239306,6.6949,149.36,149.34,1.9832]
[1746067239496,6.6949,149.36,149.33,25.32]